bitfinex-derivatives/quotes_BTCF0:USTF0_20240902
["timestamp","ask_amount","ask_price","bid_price","bid_amount"]
[1725275164137,0.99581868,58434.0,58433.0,0.0004]
[1725275165132,0.91625668,58434.0,58433.0,0.085963]
[1725275169240,1.00181868,58434.0,58433.0,0.085963]
[1725275170535,1.00181868,58434.0,58433.0,0.0004]
[1725275179346,1.08738068,58434.0,58433.0,0.0004]
[1725275179645,1.13418068,58434.0,58433.0,0.0004]
[1725275180043,2.33314268,58434.0,58433.0,0.0004]
[1725275180248,0.085571,58428.0,58422.0,0.085578]
[1725275180450,0.085976,58424.0,58419.0,0.085583]
[1725275180836,0.171552,58424.0,58418.0,0.3245]
[1725275181749,0.172552,58424.0,58423.0,0.00325668]
[1725275183046,0.178552,58424.0,58423.0,0.00025668]
[1725275183949,0.092976,58424.0,58423.0,0.00025668]
[1725275185137,0.09663951,58424.0,58423.0,0.00025668]
[1725275185650,0.09663951,58424.0,58423.0,0.06846782]
[1725275186350,0.18221551,58424.0,58423.0,0.00025668]
[1725275186540,1.29569551,58424.0,58423.0,0.00025668]
[1725275187334,1.41569551,58424.0,58423.0,0.00025668]
[1725275187941,0.90221551,58424.0,58423.0,0.00025668]
[1725275188448,1.41569551,58424.0,58423.0,0.00025668]
[1725275189042,0.18221551,58424.0,58423.0,0.00025668]
[1725275190850,0.69569551,58424.0,58423.0,0.00025668]
[1725275191951,0.18221551,58424.0,58423.0,0.00025668]
[1725275192251,0.54301551,58424.0,58423.0,0.00025668]
[1725275192558,1.85207151,58424.0,58423.0,0.00025668]
[1725275192744,0.085593,58413.0,58412.0,0.05127294]
[1725275193052,0.085593,58413.0,58411.0,0.00968]
[1725275193053,0.085594,58412.0,58411.0,0.0608854]
[1725275193356,0.085994,58412.0,58411.0,0.0608854]
[1725275193954,0.085994,58412.0,58411.0,0.1464814]
[1725275194253,0.085994,58412.0,58411.0,0.144976]
[1725275194455,0.0004,58412.0,58411.0,0.144976]
[1725275195649,0.0004,58412.0,58411.0,0.505776]
[1725275195953,0.001,58413.0,58412.0,0.088194]
[1725275196358,0.08559,58415.0,58412.0,0.085594]
[1725275196567,0.08559,58415.0,58413.0,0.05119131]
[1725275197056,0.085591,58414.0,58412.0,0.13678531]
[1725275198555,0.085591,58414.0,58412.0,0.15380514]
[1725275198754,0.085591,58414.0,58412.0,0.15580514]
[1725275199258,0.085591,58414.0,58412.0,0.15480514]
[1725275199455,0.00378531,58417.0,58412.0,0.15480514]
[1725275199456,0.085593,58413.0,58412.0,0.15480514]
[1725275199957,0.085593,58413.0,58412.0,0.086594]
[1725275200156,0.085593,58413.0,58412.0,0.15480514]
[1725275202459,0.085593,58413.0,58412.0,0.15380514]
[1725275202460,0.088593,58413.0,58412.0,0.15380514]
[1725275203653,0.088593,58413.0,58412.0,0.15387986]
[1725275203853,0.088593,58413.0,58412.0,0.085594]
[1725275207056,0.088593,58413.0,58412.0,0.134094]
[1725275209152,0.088593,58413.0,58412.0,0.3498579]
[1725275209467,0.088593,58413.0,58412.0,0.2194018]
[1725275210160,0.088593,58413.0,58412.0,0.26455023]
[1725275211962,0.088593,58413.0,58412.0,0.26455002]
[1725275214572,0.00025668,58417.0,58416.0,0.085588]
[1725275214767,0.00092,58430.0,58429.0,0.085569]
[1725275214961,0.0472,58436.0,58430.0,0.085567]
[1725275214962,0.175563,58434.0,58430.0,0.085567]
[1725275215162,0.085564,58433.0,58432.0,0.06840078]
[1725275216169,0.085564,58433.0,58431.0,0.15396678]
[1725275216367,0.0004,58432.0,58431.0,0.15396678]
[1725275217073,0.0004,58432.0,58431.0,0.085566]
[1725275218461,0.085965,58432.0,58429.0,0.06840078]
[1725275218658,0.085568,58430.0,58429.0,0.06840078]
[1725275218864,0.0454,58431.0,58428.0,0.06840078]
[1725275219074,0.16,58429.0,58428.0,0.06840078]
[1725275219263,1.07,58429.0,58428.0,0.06840078]
[1725275219869,1.155569,58429.0,58428.0,0.06840078]
[1725275220069,1.155569,58429.0,58428.0,0.06940078]
[1725275220370,0.012,58431.0,58428.0,0.06940078]
[1725275220575,0.085565,58432.0,58429.0,0.085569]
[1725275221271,0.16,58433.0,58429.0,0.085569]
[1725275221272,0.085566,58431.0,58430.0,0.05123465]
[1725275222064,0.531932,58431.0,58430.0,0.05123465]
[1725275222273,0.085571,58428.0,58427.0,0.05149133]
[1725275222467,0.245571,58428.0,58427.0,0.00025668]
[1725275222669,1.155571,58428.0,58427.0,0.00025668]
[1725275222972,0.3748,58431.0,58430.0,0.001]
[1725275223168,0.460366,58431.0,58430.0,0.001]
[1725275223563,0.446366,58431.0,58429.0,0.13679105]
[1725275225081,0.91,58430.0,58429.0,0.13679105]
[1725275226365,0.91,58430.0,58429.0,0.085569]
[1725275226676,0.924,58430.0,58429.0,0.085569]
[1725275228170,0.085571,58428.0,58427.0,0.00025668]
[1725275228383,0.085971,58428.0,58427.0,0.00025668]
[1725275228773,0.995971,58428.0,58427.0,0.00025668]
[1725275230175,1.007971,58428.0,58427.0,0.00025668]
[1725275230378,0.0124,58428.0,58427.0,0.08582868]
[1725275232270,0.0124,58428.0,58427.0,0.24582868]
[1725275232479,0.0124,58428.0,58427.0,1.89121268]
[1725275232671,0.0124,58428.0,58427.0,1.95961346]
[1725275232879,0.0124,58428.0,58427.0,1.37777268]
[1725275233273,0.0124,58428.0,58427.0,1.29220068]
[1725275233475,0.0124,58428.0,58427.0,1.80564068]
[1725275234482,0.0124,58428.0,58427.0,1.27753894]
[1725275234986,0.0124,58428.0,58427.0,0.76409894]
[1725275235284,0.0124,58428.0,58427.0,1.87753894]
[1725275235482,0.0124,58428.0,58427.0,1.27753894]
[1725275235685,0.0124,58428.0,58427.0,1.33971383]
[1725275236395,0.0124,58428.0,58427.0,1.93971383]
[1725275237773,0.0124,58428.0,58427.0,1.93971425]
[1725275240999,0.0124,58428.0,58427.0,1.33971425]
[1725275241175,0.0124,58428.0,58427.0,1.93971425]
[1725275242496,0.0124,58428.0,58427.0,1.33971425]
[1725275242696,0.0124,58428.0,58427.0,1.20930649]
[1725275243892,0.0124,58428.0,58427.0,1.04930649]
[1725275244192,0.0124,58428.0,58427.0,1.13930649]
[1725275244383,0.0124,58428.0,58427.0,0.62586649]
[1725275246290,0.0124,58428.0,58427.0,0.54029449]
[1725275247190,0.0124,58428.0,58427.0,0.45029449]
[1725275247394,0.0124,58428.0,58427.0,0.44662868]
[1725275248987,0.097971,58428.0,58427.0,0.44662868]
[1725275249996,0.097971,58428.0,58427.0,0.08582868]
[1725275250190,0.097971,58428.0,58427.0,0.44662868]
[1725275250694,0.0124,58428.0,58427.0,0.6670424]
[1725275252089,0.0124,58428.0,58427.0,0.66704233]
[1725275256502,0.0124,58428.0,58427.0,0.13067033]
[1725275257099,0.0574,58428.0,58427.0,0.13067033]
[1725275257302,0.0574,58428.0,58427.0,0.21616468]
[1725275258000,0.142971,58428.0,58427.0,0.21616468]
[1725275258398,0.142971,58428.0,58427.0,0.13067033]
[1725275258790,0.228542,58428.0,58427.0,0.00025668]
[1725275259097,0.318542,58428.0,58427.0,0.00025668]
[1725275260096,0.142971,58428.0,58427.0,0.00025668]
[1725275260405,0.142971,58428.0,58427.0,0.08582868]
[1725275260608,0.142971,58428.0,58427.0,0.21625263]
[1725275261598,0.0124,58428.0,58427.0,0.21625263]
[1725275261995,0.0124,58428.0,58427.0,0.21625004]
[1725275262398,0.2094,58439.0,58436.0,0.085559]
[1725275262399,0.134955,58439.0,58436.0,0.085559]
[1725275262721,0.134955,58439.0,58437.0,0.0004]
[1725275263598,0.36473316,58438.0,58437.0,0.0004]
[1725275263799,0.37873316,58438.0,58437.0,0.0004]
[1725275265408,0.37573316,58438.0,58437.0,0.0014]
[1725275270112,0.37573316,58438.0,58437.0,0.086957]
[1725275273502,0.37073316,58438.0,58437.0,0.086957]
[1725275275413,0.45628916,58438.0,58437.0,0.086957]
[1725275276303,0.45028916,58438.0,58437.0,0.085957]
[1725275276504,0.45628916,58438.0,58437.0,0.086957]
[1725275276724,0.45628916,58438.0,58437.0,0.0014]
[1725275277010,0.45028916,58438.0,58437.0,0.0004]
[1725275277199,0.45828916,58438.0,58437.0,0.0014]
[1725275278302,0.54384516,58438.0,58437.0,0.0014]
[1725275278509,1.48609316,58438.0,58436.0,0.06845257]
[1725275278704,0.08556,58435.0,58433.0,0.06845257]
[1725275278900,0.08556,58435.0,58432.0,0.06845257]
[1725275278901,0.085563,58433.0,58432.0,0.06845257]
[1725275279207,0.331126,58433.0,58432.0,0.06845257]
[1725275279403,0.17113,58432.0,58431.0,0.06845257]
[1725275279704,0.26793,58432.0,58431.0,0.06845257]
[1725275279900,0.085566,58431.0,58429.0,0.06845257]
[1725275280112,0.692336,58430.0,58429.0,0.06843672]
[1725275280509,0.691336,58430.0,58429.0,0.06843672]
[1725275280807,0.085571,58428.0,58427.0,0.00025668]
[1725275281013,0.085971,58428.0,58427.0,0.00025668]
[1725275281218,0.084971,58428.0,58427.0,0.00025668]
[1725275281906,0.170542,58428.0,58427.0,0.00025668]
[1725275283408,0.169542,58428.0,58427.0,0.00025668]
[1725275283909,0.259542,58428.0,58427.0,0.00025668]
[1725275284226,0.270542,58428.0,58427.0,0.00125668]
[1725275284602,1.74830856,58428.0,58427.0,0.00125668]
[1725275284803,1.84387956,58428.0,58427.0,0.00125668]
[1725275285514,2.75387956,58428.0,58427.0,6.8e-07]
[1725275285913,0.085594,58412.0,58411.0,0.00968]
[1725275286114,0.085994,58412.0,58411.0,0.00968]
[1725275287304,0.086994,58412.0,58411.0,0.01668]
[1725275287719,0.0014,58412.0,58411.0,0.01668]
[1725275288013,0.0014,58412.0,58411.0,0.102276]
[1725275290814,0.0014,58412.0,58411.0,0.463076]
[1725275291016,0.00025668,58417.0,58416.0,0.085588]
[1725275291216,0.0035423,58423.0,58422.0,0.245579]
[1725275291416,0.3608,58429.0,58422.0,0.22862267]
[1725275291626,0.3608,58429.0,58428.0,0.0004]
[1725275291916,0.3608,58429.0,58426.0,0.13674472]
[1725275292515,0.91,58428.0,58426.0,0.05117172]
[1725275293410,0.36442613,58429.0,58425.0,0.05117172]
[1725275293613,0.36442613,58429.0,58428.0,0.0004]
[1725275295617,0.37642613,58429.0,58428.0,0.0014]
[1725275295917,0.42896003,58429.0,58428.0,0.0014]
[1725275296120,0.06816003,58429.0,58428.0,0.0014]
[1725275296823,0.3406982,58429.0,58428.0,0.0014]
[1725275297215,0.21511448,58429.0,58428.0,0.0014]
[1725275297415,0.15372903,58429.0,58428.0,0.0014]
[1725275297715,1.06372903,58429.0,58428.0,0.0014]
[1725275297924,0.15372903,58429.0,58428.0,0.0014]
[1725275299125,0.15373115,58429.0,58428.0,0.0014]
[1725275300010,0.51453115,58429.0,58428.0,0.0014]
[1725275300521,0.70150436,58429.0,58428.0,0.0014]
[1725275300723,0.76289226,58429.0,58428.0,0.0014]
[1725275301616,0.57591905,58429.0,58428.0,0.0014]
[1725275303028,0.46199513,58429.0,58428.0,0.0014]
[1725275304418,0.10119513,58429.0,58428.0,0.0014]
[1725275304624,0.46199513,58429.0,58428.0,0.0014]
[1725275305622,0.54756413,58429.0,58428.0,0.0014]
[1725275307912,0.63756413,58429.0,58428.0,0.0014]
[1725275308814,0.27676413,58429.0,58428.0,0.0014]
[1725275309017,0.63756413,58429.0,58428.0,0.0014]
[1725275311015,0.27676413,58429.0,58428.0,0.0014]
[1725275311219,0.63756413,58429.0,58428.0,0.0014]
[1725275312318,0.17115,58425.0,58424.0,0.0001]
[1725275312535,0.17155,58425.0,58424.0,0.0001]
[1725275313715,0.17955,58425.0,58424.0,0.0011]
[1725275314220,0.17955,58425.0,58424.0,0.01306415]
[1725275316935,0.22935,58425.0,58424.0,0.01306415]
[1725275317120,0.27475,58425.0,58424.0,0.01306415]
[1725275317524,0.171188,58412.0,58411.0,0.00968]
[1725275317828,0.261588,58412.0,58411.0,0.00968]
[1725275318019,0.31413749,58412.0,58411.0,0.00968]
[1725275318221,0.45143749,58412.0,58411.0,0.00968]
[1725275318432,0.45144057,58412.0,58411.0,0.00968]
[1725275318735,0.53703457,58412.0,58411.0,0.00968]
[1725275318922,1.65063457,58412.0,58411.0,0.00968]
[1725275319525,0.45144057,58412.0,58411.0,0.00968]
[1725275319932,0.52144057,58412.0,58411.0,0.00968]
[1725275320234,1.43144057,58412.0,58411.0,0.00968]
[1725275320433,1.43844057,58412.0,58411.0,0.00968]
[1725275321441,1.385888,58412.0,58411.0,0.00968]
[1725275321742,1.38940275,58412.0,58411.0,0.00968]
[1725275323836,0.09650875,58412.0,58411.0,0.00968]
[1725275324038,0.25650875,58412.0,58411.0,0.00968]
[1725275324244,1.25210275,58412.0,58411.0,0.00968]
[1725275324440,1.30190275,58412.0,58411.0,0.00968]
[1725275324740,0.39190275,58412.0,58411.0,0.00968]
[1725275327546,0.25650875,58412.0,58411.0,0.00968]
[1725275329942,0.34210275,58412.0,58411.0,0.00968]
[1725275330347,0.42769675,58412.0,58411.0,0.00968]
[1725275331448,0.34210275,58412.0,58411.0,0.00968]
[1725275335243,1.25210275,58412.0,58411.0,0.00968]
[1725275335845,1.97370275,58412.0,58411.0,0.00968]
[1725275338253,2.05929675,58412.0,58411.0,0.00968]
[1725275340355,1.97370275,58412.0,58411.0,0.00968]
[1725275343260,0.81810875,58412.0,58411.0,0.00968]
[1725275343461,0.00025668,58417.0,58416.0,0.085588]
[1725275343665,0.00025668,58417.0,58416.0,0.085988]
[1725275344552,0.01325668,58417.0,58416.0,0.085988]
[1725275355266,0.00025668,58417.0,58416.0,0.088988]
[1725275355959,0.00025668,58417.0,58416.0,0.086988]
[1725275356569,0.05279836,58417.0,58416.0,0.086988]
[1725275357555,0.05279836,58417.0,58416.0,0.246988]
[1725275357957,0.05279836,58417.0,58416.0,0.245988]
[1725275358161,0.05279836,58417.0,58416.0,0.246988]
[1725275358567,0.05279836,58417.0,58416.0,0.245988]
[1725275359361,0.05279836,58417.0,58416.0,0.246988]
[1725275361064,0.05279836,58417.0,58416.0,0.245988]
[1725275361267,0.05279836,58417.0,58416.0,0.0004]
[1725275361571,0.25685322,58417.0,58416.0,0.0064]
[1725275361761,0.3093949,58417.0,58416.0,0.0064]
[1725275362769,0.3083949,58417.0,58416.0,0.0004]
[1725275362960,0.3113949,58417.0,58416.0,0.0004]
[1725275363163,0.25885322,58417.0,58416.0,0.0004]
[1725275363474,0.08884368,58417.0,58416.0,0.0004]
[1725275364673,0.09284368,58417.0,58416.0,0.0014]
[1725275365667,0.08584368,58417.0,58416.0,0.0004]
[1725275365864,0.09284368,58417.0,58416.0,0.0014]
[1725275367163,0.17843068,58417.0,58416.0,0.0014]
[1725275367361,0.17143068,58417.0,58416.0,0.0004]
[1725275367564,0.18443068,58417.0,58416.0,0.0014]
[1725275368573,1.29799068,58417.0,58416.0,0.0014]
[1725275368972,1.38357768,58417.0,58416.0,0.0014]
[1725275369365,1.49357768,58417.0,58416.0,0.0014]
[1725275375973,0.29443068,58417.0,58416.0,0.0014]
[1725275376170,0.01325668,58417.0,58416.0,0.086988]
[1725275378382,0.01325668,58417.0,58416.0,0.138233]
[1725275379776,0.37405668,58417.0,58416.0,0.086988]
[1725275380881,0.45964368,58417.0,58416.0,0.0014]
[1725275382785,1.36964368,58417.0,58416.0,0.0014]
[1725275389391,1.36964368,58417.0,58416.0,0.086988]
[1725275390092,1.45523068,58417.0,58416.0,0.086988]
[1725275390482,1.50777861,58417.0,58416.0,0.086988]
[1725275391388,1.50777861,58417.0,58416.0,0.0014]
[1725275393286,1.45523068,58417.0,58416.0,0.0014]
[1725275393693,1.81603068,58417.0,58416.0,0.0014]
[1725275395593,1.81503068,58417.0,58416.0,0.0014]
[1725275396395,1.82603068,58417.0,58416.0,0.0024]
[1725275397287,1.813774,58417.0,58416.0,0.0014]
[1725275397594,1.823774,58417.0,58416.0,0.0024]
[1725275397985,1.826774,58417.0,58416.0,0.0024]
[1725275399992,1.916774,58417.0,58416.0,0.0024]
[1725275401188,2.002361,58417.0,58416.0,0.0024]
[1725275401391,3.115921,58417.0,58416.0,0.0024]
[1725275401595,3.245921,58417.0,58416.0,0.0024]
[1725275402292,3.331508,58417.0,58416.0,0.0024]
[1725275403891,3.401508,58417.0,58416.0,0.0024]
[1725275408414,3.45406307,58417.0,58416.0,0.0024]
[1725275409212,3.29406307,58417.0,58416.0,0.0024]
[1725275409415,2.09491607,58417.0,58416.0,0.0024]
[1725275409620,2.25491607,58417.0,58416.0,0.0024]
[1725275411815,2.25491352,58417.0,58416.0,0.0024]
[1725275413015,0.171202,58407.0,58406.0,0.00025668]
[1725275413223,0.532002,58407.0,58406.0,0.00025668]
[1725275413426,0.532402,58407.0,58406.0,0.00025668]
[1725275413622,0.446801,58407.0,58406.0,0.00025668]
[1725275413818,0.446801,58407.0,58406.0,0.08585968]
[1725275414212,0.447801,58407.0,58406.0,0.08585968]
[1725275414724,0.45134867,58407.0,58406.0,0.08585968]
[1725275416416,0.36574767,58407.0,58406.0,0.08585968]
[1725275417016,0.45134867,58407.0,58406.0,0.08585968]
[1725275419728,0.45134867,58407.0,58406.0,0.00025668]
[1725275419729,0.53694967,58407.0,58406.0,0.00025668]
[1725275419925,0.98335067,58407.0,58406.0,0.00025668]
[1725275421034,1.14335067,58407.0,58406.0,0.00025668]
[1725275423429,1.38289164,58407.0,58406.0,0.00025668]
[1725275424136,1.12590876,58407.0,58406.0,0.00025668]
[1725275425527,0.47971925,58407.0,58406.0,0.08585968]
[1725275425729,0.60904989,58407.0,58406.0,0.08585968]
[1725275425935,0.5624918,58407.0,58406.0,0.08685968]
[1725275426126,0.61504467,58407.0,58406.0,0.08685968]
[1725275426529,0.0104,58407.0,58406.0,1.64690268]
[1725275427522,0.0074,58407.0,58406.0,1.73690268]
[1725275427722,0.0074,58407.0,58406.0,1.74051956]
[1725275427919,0.0074,58407.0,58406.0,1.80951956]
[1725275427920,0.0014,58407.0,58406.0,1.80951956]
[1725275428124,0.0034,58407.0,58406.0,1.80951956]
[1725275432436,0.0034,58407.0,58406.0,1.89512256]
[1725275432835,0.00361436,58413.0,58412.0,0.171188]
[1725275433034,0.3608,58421.0,58412.0,0.171188]
[1725275433035,0.3608,58421.0,58420.0,0.085582]
[1725275433235,0.3608,58421.0,58420.0,0.085982]
[1725275433434,0.3608,58421.0,58420.0,0.085582]
[1725275434034,0.36436911,58421.0,58420.0,0.085582]
[1725275434242,0.37836911,58421.0,58420.0,0.086582]
[1725275434839,0.46395011,58421.0,58420.0,0.086582]
[1725275435834,0.46395011,58421.0,58420.0,0.087582]
[1725275435835,0.47795011,58421.0,58420.0,0.087582]
[1725275445553,0.53049208,58421.0,58420.0,0.087582]
[1725275448043,0.53049208,58421.0,58420.0,0.177582]
[1725275448946,0.53049208,58421.0,58420.0,0.002]
[1725275449150,0.61607308,58421.0,58420.0,0.002]
[1725275449947,0.61607348,58421.0,58420.0,0.002]
[1725275453052,0.085593,58413.0,58412.0,0.0004]
[1725275453351,0.6749315,58413.0,58412.0,0.0004]
[1725275453650,1.532386,58413.0,58412.0,0.0004]
[1725275454242,1.178586,58413.0,58412.0,0.0014]
[1725275454446,1.187586,58413.0,58412.0,0.0024]
[1725275454649,1.237486,58413.0,58412.0,0.0024]
[1725275455745,1.147486,58413.0,58412.0,0.0024]
[1725275455951,1.237486,58413.0,58412.0,0.0024]
[1725275457248,1.24110129,58413.0,58412.0,0.0024]
[1725275459150,1.32669429,58413.0,58412.0,0.0024]
[1725275461751,1.24110129,58413.0,58412.0,0.0024]
[1725275462050,1.39669429,58413.0,58412.0,0.0024]
[1725275464541,1.31110129,58413.0,58412.0,0.0024]
[1725275468144,1.39669429,58413.0,58412.0,0.0024]
[1725275470050,1.60228729,58413.0,58412.0,1e-06]
[1725275470552,1.60228729,58413.0,58406.0,6.8e-07]
[1725275470553,0.256803,58407.0,58406.0,6.8e-07]
[1725275470753,0.256803,58407.0,58395.0,0.048]
[1725275470754,0.171236,58396.0,58395.0,0.048]
[1725275470957,0.692436,58396.0,58395.0,0.048]
[1725275471458,1.688054,58396.0,58395.0,0.048]
[1725275472856,1.69172036,58396.0,58395.0,0.048]
[1725275473252,1.69172036,58396.0,58395.0,0.055]
[1725275474048,1.70013461,58396.0,58395.0,0.055]
[1725275475761,1.70013461,58396.0,58395.0,0.054]
[1725275476557,1.70113461,58396.0,58395.0,0.051]
[1725275477355,1.70113461,58396.0,58395.0,0.048]
[1725275477551,1.70113461,58396.0,58395.0,0.05]
[1725275478365,1.70413461,58396.0,58395.0,0.048]
[1725275482654,1.69572036,58396.0,58395.0,0.048]
[1725275483256,1.70409412,58396.0,58395.0,0.048]
[1725275483952,1.63409412,58396.0,58395.0,0.048]
[1725275485166,1.45847612,58396.0,58395.0,0.048]
[1725275485352,1.54847612,58396.0,58395.0,0.048]
[1725275486272,1.37285812,58396.0,58395.0,0.133619]
[1725275486562,1.45448436,58396.0,58395.0,0.133619]
[1725275486763,1.27886636,58396.0,58395.0,0.737339]
[1725275486961,0.0044,58396.0,58395.0,1.337339]
[1725275487266,0.0044,58396.0,58395.0,1.422958]
[1725275487468,0.00025668,58401.0,58400.0,0.085612]
[1725275487662,0.00025668,58401.0,58400.0,0.175612]
[1725275487971,0.00025668,58401.0,58400.0,1.199292]
[1725275488966,0.00025668,58401.0,58400.0,1.284904]
[1725275489559,0.00225668,58401.0,58400.0,1.284904]
[1725275490361,0.00525668,58401.0,58400.0,1.199292]
[1725275492870,0.00525668,58401.0,58400.0,1.20295711]
[1725275494770,0.00525668,58401.0,58400.0,1.37418111]
[1725275498368,0.00525668,58401.0,58400.0,1.28856911]
[1725275503877,0.00325668,58401.0,58400.0,1.29456911]
[1725275504274,0.00125668,58401.0,58400.0,1.29456911]
[1725275504469,0.00225668,58401.0,58400.0,1.30056911]
[1725275505165,0.00225668,58401.0,58400.0,1.38618111]
[1725275505568,0.00225668,58401.0,58400.0,1.30056911]
[1725275505774,0.36439678,58409.0,58408.0,0.0856]
[1725275505974,0.00359678,58409.0,58408.0,0.13675392]
[1725275506175,0.245587,58418.0,58410.0,0.085597]
[1725275506176,0.085596,58411.0,58410.0,0.085597]
[1725275506473,0.085596,58411.0,58410.0,0.13675141]
[1725275507276,0.00363204,58413.0,58412.0,0.085594]
[1725275507565,0.36105668,58416.0,58411.0,0.085596]
[1725275507566,0.08559,58415.0,58414.0,0.08559]
[1725275508375,0.08559,58415.0,58414.0,0.13674529]
[1725275509268,0.08859,58415.0,58414.0,0.13674529]
[1725275509475,0.09259,58415.0,58414.0,0.13674529]
[1725275510069,0.09259,58415.0,58414.0,0.22674529]
[1725275510971,0.007,58415.0,58414.0,0.261181]
[1725275511166,0.007,58415.0,58414.0,0.17559]
[1725275511569,0.0561,58415.0,58414.0,0.17559]
[1725275513467,0.0561,58415.0,58414.0,0.08559]
[1725275513468,0.23169,58415.0,58414.0,0.08559]
[1725275519184,0.14169,58415.0,58414.0,0.08559]
[1725275520180,0.085593,58413.0,58412.0,0.175593]
[1725275520480,0.0856,58408.0,58407.0,0.3608]
[1725275520679,0.2616,58408.0,58407.0,0.3608]
[1725275520872,0.2616,58408.0,58407.0,0.57655147]
[1725275521074,0.2616,58408.0,58407.0,0.57655303]
[1725275521075,1.1716,58408.0,58407.0,0.57655303]
[1725275521271,0.996,58408.0,58407.0,0.57655303]
[1725275521774,0.996,58408.0,58407.0,0.57687096]
[1725275521976,0.996,58408.0,58407.0,0.49126996]
[1725275522177,1.0816,58408.0,58407.0,0.49126996]
[1725275522683,0.996,58408.0,58407.0,0.49126996]
[1725275522876,1.0,58408.0,58407.0,0.49126996]
[1725275523585,1.008,58408.0,58407.0,0.49326996]
[1725275523780,1.09713803,58408.0,58407.0,0.13246996]
[1725275524585,1.01153803,58408.0,58407.0,0.13246996]
[1725275525579,1.09713803,58408.0,58407.0,0.13246996]
[1725275525790,1.01153803,58408.0,58407.0,0.21802481]
[1725275526180,1.09713803,58408.0,58407.0,0.21802481]
[1725275526685,1.01153803,58408.0,58407.0,0.21802481]
[1725275527285,1.09713803,58408.0,58407.0,0.21802481]
[1725275527475,1.01153803,58408.0,58407.0,0.21802481]
[1725275527682,0.10153803,58408.0,58407.0,0.21802481]
[1725275528091,0.18713803,58408.0,58407.0,0.21802481]
[1725275528591,0.10153803,58408.0,58407.0,0.21802481]
[1725275529081,0.18713803,58408.0,58407.0,0.08755485]
[1725275529280,0.18713803,58408.0,58407.0,0.21802699]
[1725275530686,0.10153803,58408.0,58407.0,0.21802699]
[1725275531586,0.18713803,58408.0,58407.0,0.21802699]
[1725275532286,0.10153803,58408.0,58407.0,0.21802699]
[1725275532987,0.18713803,58408.0,58407.0,0.13247214]
[1725275533285,0.10153803,58408.0,58407.0,0.13247214]
[1725275535882,0.10153803,58408.0,58407.0,0.002]
[1725275536988,0.10153803,58408.0,58407.0,0.087601]
[1725275537187,0.0124,58408.0,58407.0,1.047642]
[1725275539095,0.0124,58408.0,58407.0,0.686842]
[1725275539396,0.0124,58408.0,58407.0,1.047642]
[1725275539594,0.0124,58408.0,58407.0,0.686842]
[1725275539790,0.0124,58408.0,58407.0,0.173202]
[1725275540191,0.0124,58408.0,58407.0,0.53764918]
[1725275541192,0.0124,58408.0,58407.0,0.62764918]
[1725275542399,0.0124,58408.0,58407.0,0.71325018]
[1725275543889,0.0124,58408.0,58407.0,0.94636154]
[1725275544388,0.0124,58408.0,58407.0,1.95734042]
[1725275544588,0.0124,58408.0,58407.0,2.11611718]
[1725275545899,0.3608,58420.0,58415.0,0.08559]
[1725275546104,0.3608,58420.0,58415.0,0.39195377]
[1725275546305,0.3608,58420.0,58415.0,0.26150353]
[1725275546499,0.0487,58424.0,58415.0,0.75282354]
[1725275546800,0.0487,58424.0,58415.0,0.83841354]
[1725275547202,0.0487,58424.0,58415.0,0.75282354]
[1725275547406,0.01425668,58416.0,58415.0,0.75282354]
[1725275548195,0.01425668,58416.0,58415.0,0.7528092]
[1725275548715,0.01425668,58416.0,58415.0,0.7538092]
[1725275548898,0.02725668,58416.0,58415.0,0.75734991]
[1725275550803,0.00360977,58423.0,58422.0,0.085579]
[1725275551007,0.10123579,58424.0,58423.0,0.085578]
[1725275551301,0.18681179,58424.0,58423.0,0.085978]
[1725275551502,0.18681179,58424.0,58423.0,0.085578]
[1725275552106,0.10123579,58424.0,58423.0,0.085578]
[1725275552707,0.10123579,58424.0,58423.0,0.086578]
[1725275552708,0.11523579,58424.0,58423.0,0.086578]
[1725275553403,0.12323579,58424.0,58423.0,0.087578]
[1725275553807,0.20881179,58424.0,58423.0,0.087578]
[1725275554303,0.21237569,58424.0,58423.0,0.087578]
[1725275556294,0.21237569,58424.0,58423.0,0.086578]
[1725275556295,0.20437569,58424.0,58423.0,0.086578]
[1725275557208,0.20437569,58424.0,58423.0,0.088578]
[1725275557405,0.19037569,58424.0,58423.0,0.087578]
[1725275557602,0.19037615,58424.0,58423.0,0.087578]
[1725275558407,0.19037615,58424.0,58423.0,0.088578]
[1725275558907,0.1378399,58424.0,58423.0,0.087578]
[1725275559503,0.0522639,58424.0,58423.0,0.087578]
[1725275559704,0.0487,58424.0,58423.0,0.087578]
[1725275561401,0.00025668,58429.0,58428.0,0.085571]
[1725275561601,0.00394128,58429.0,58428.0,0.175971]
[1725275562608,0.00894128,58429.0,58428.0,0.175971]
[1725275565305,0.00894128,58429.0,58428.0,0.085971]
[1725275565510,0.00894128,58429.0,58428.0,0.175971]
[1725275566111,0.00525668,58429.0,58428.0,0.175971]
[1725275568518,0.00525668,58429.0,58428.0,0.261542]
[1725275573012,0.00525668,58429.0,58428.0,0.39194967]
[1725275576814,0.00525668,58429.0,58428.0,0.261542]
[1725275577119,0.00525668,58429.0,58428.0,0.39194917]
[1725275581112,0.00525668,58429.0,58428.0,0.261542]
[1725275582123,0.00525668,58429.0,58428.0,0.622342]
[1725275585623,0.00525668,58429.0,58428.0,0.707913]
[1725275586521,0.00525668,58429.0,58428.0,0.347113]
[1725275586720,0.00525668,58429.0,58428.0,0.707913]
[1725275590630,0.00525668,58429.0,58428.0,0.532342]
[1725275590839,0.00525668,58429.0,58428.0,0.622342]
[1725275592329,0.00525668,58429.0,58428.0,0.532342]
[1725275592521,0.00525668,58429.0,58428.0,0.446771]
[1725275592727,0.00525668,58429.0,58428.0,0.536771]
[1725275596136,0.00525668,58429.0,58428.0,0.66717959]
[1725275599427,0.00525668,58429.0,58428.0,0.66718039]
[1725275601837,0.00525668,58429.0,58428.0,0.30638039]
[1725275602047,0.00525668,58429.0,58428.0,0.66718039]
[1725275603241,0.00525668,58429.0,58428.0,0.536771]
[1725275604142,0.00525668,58429.0,58428.0,0.62234169]
[1725275604742,0.00525668,58429.0,58428.0,0.536771]
[1725275604937,0.00525668,58429.0,58428.0,0.446771]